bitfinex-derivatives/quotes_BTCF0:USTF0_20250716
["timestamp","ask_amount","ask_price","bid_price","bid_amount"]
[1752684979078,1.82048,119330.0,119320.0,0.72279964]
[1752684979284,0.01792,119330.0,119320.0,1.16268232]
[1752684979486,0.63456,119330.0,119320.0,1.16268232]
[1752684980179,0.63456,119330.0,119320.0,0.3127355]
[1752684980386,0.61868,119330.0,119320.0,1.16268232]
[1752684980882,0.04296,119350.0,119340.0,0.1860302]
[1752684980883,0.0548,119350.0,119340.0,0.1860302]
[1752684981082,0.64818,119350.0,119340.0,0.73974563]
[1752684981482,0.64818,119350.0,119340.0,0.31477222]
[1752684981985,0.64818,119350.0,119340.0,0.2700676]
[1752684982378,0.64918,119350.0,119340.0,0.69504101]
[1752684982786,0.64918,119350.0,119340.0,0.2700676]
[1752684983282,0.03258,119350.0,119340.0,0.2700676]
[1752684983779,0.03258,119350.0,119340.0,0.76195445]
[1752684983980,0.03158,119350.0,119340.0,0.33698104]
[1752684984182,0.03158,119350.0,119340.0,0.76195445]
[1752684984876,0.69106,119360.0,119350.0,0.2530562]
[1752684985082,0.70777773,119360.0,119350.0,0.2530562]
[1752684985282,0.70777773,119360.0,119350.0,0.67802961]
[1752684985679,0.6481,119360.0,119350.0,0.67802961]
[1752684986590,0.6481,119360.0,119350.0,0.2530562]
[1752684987093,0.69106,119360.0,119350.0,0.67802961]
[1752684987282,0.69106,119360.0,119350.0,0.68643296]
[1752684987682,0.6855197,119360.0,119350.0,0.09394335]
[1752684987895,0.90951525,119360.0,119350.0,0.22973915]
[1752684988083,0.90951525,119360.0,119350.0,0.20463915]
[1752684988392,1.33448866,119360.0,119350.0,0.00840335]
[1752684988589,0.1675056,119350.0,119340.0,0.42860534]
[1752684988793,0.2420456,119350.0,119340.0,0.39729225]
[1752684988995,0.2420456,119350.0,119340.0,0.85397566]
[1752684989194,0.2420456,119350.0,119340.0,0.42900225]
[1752684989396,0.07454,119350.0,119340.0,0.42900225]
[1752684989597,0.07454,119350.0,119340.0,0.85397566]
[1752684989997,0.03158,119350.0,119340.0,0.85397566]
[1752684990195,0.89282359,119360.0,119350.0,0.2014918]
[1752684990399,0.89282359,119360.0,119350.0,0.2530418]
[1752684990600,0.07331449,119360.0,119350.0,0.67801521]
[1752684990799,0.69061449,119360.0,119350.0,0.67801521]
[1752684991202,0.69061449,119360.0,119350.0,0.2530418]
[1752684991399,0.90106119,119360.0,119350.0,0.2530418]
[1752684991702,0.90106109,119360.0,119350.0,0.67801521]
[1752684991902,0.90106109,119360.0,119350.0,0.2530418]
[1752684992100,0.73357449,119360.0,119350.0,0.72271983]
[1752684992300,0.90106109,119360.0,119350.0,0.72271983]
[1752684992501,0.90106109,119360.0,119350.0,0.67801521]
[1752684993092,0.73357449,119360.0,119350.0,0.67801521]
[1752684993497,0.71506,119360.0,119350.0,0.67801521]
[1752684993704,0.6723,119360.0,119350.0,0.2532418]
[1752684994003,0.8630066,119360.0,119350.0,0.2532418]
[1752684994203,0.8827466,119360.0,119350.0,0.67821521]
[1752684994604,0.8827466,119360.0,119350.0,0.2215318]
[1752684995103,0.8827466,119360.0,119350.0,0.64650521]
[1752684995705,0.8827866,119360.0,119350.0,0.05403]
[1752684996000,0.8827866,119360.0,119350.0,0.05175]
[1752684996406,0.8827866,119360.0,119350.0,0.64422351]
[1752684996609,0.8827866,119360.0,119350.0,0.66199351]
[1752684996915,0.8827866,119360.0,119350.0,0.67821351]
[1752684997505,0.8827866,119360.0,119350.0,0.2532401]
[1752684997716,0.8827866,119360.0,119350.0,0.67821351]
[1752684998515,0.8827866,119360.0,119350.0,0.2532401]
[1752684998917,0.8827866,119360.0,119350.0,0.67821351]
[1752685000312,0.8827866,119360.0,119350.0,0.2532401]
[1752685000513,0.8827866,119360.0,119350.0,0.67821351]
[1752685001016,0.8640453,119360.0,119350.0,0.67821351]
[1752685001418,0.8837853,119360.0,119350.0,0.2532401]
[1752685001815,0.8837853,119360.0,119350.0,0.67821351]
[1752685002116,0.8837853,119360.0,119350.0,0.2532401]
[1752685002415,0.8837853,119360.0,119350.0,0.67821351]
[1752685003412,0.8837853,119360.0,119350.0,0.2532401]
[1752685003614,0.8837853,119360.0,119350.0,0.67821351]
[1752685003812,0.8837853,119360.0,119350.0,0.2532401]
[1752685004017,0.8837853,119360.0,119350.0,0.67821351]
[1752685004412,0.8837853,119360.0,119350.0,0.2532401]
[1752685004613,0.8837853,119360.0,119350.0,0.67821351]
[1752685004913,0.8876253,119360.0,119350.0,0.67821351]
[1752685005511,0.70036,119360.0,119350.0,0.2532401]
[1752685005715,0.8678454,119360.0,119350.0,0.67821351]
[1752685005919,0.70036,119360.0,119350.0,0.67821351]
[1752685006104,0.90643307,119360.0,119350.0,0.08574]
[1752685006304,1.83140648,119360.0,119350.0,0.0002]
[1752685006616,1.57400107,119360.0,119350.0,0.0002]
[1752685006815,1.99897448,119360.0,119350.0,0.0002]
[1752685007214,1.57400107,119360.0,119350.0,0.0002]
[1752685007417,1.41847307,119360.0,119350.0,0.0002]
[1752685007718,1.41847307,119360.0,119350.0,0.02817]
[1752685008214,1.41847307,119360.0,119350.0,0.00503]
[1752685009719,1.41847307,119360.0,119350.0,0.0002]
[1752685010317,1.41847307,119360.0,119350.0,0.02817]
[1752685010616,1.41847307,119360.0,119350.0,0.0532]
[1752685010818,1.41847307,119360.0,119350.0,0.00503]
[1752685011720,1.41847307,119360.0,119350.0,0.0002]
[1752685013220,1.41847307,119360.0,119350.0,0.02817]
[1752685013419,1.41847307,119360.0,119350.0,0.0507]
[1752685013921,1.41847307,119360.0,119350.0,0.47817341]
[1752685014122,1.41847307,119360.0,119350.0,0.66107281]
[1752685014421,0.76111307,119360.0,119350.0,0.66107281]
[1752685014622,1.41631307,119360.0,119350.0,0.66107281]
[1752685015325,1.41631307,119360.0,119350.0,0.49357341]
[1752685015624,1.41631307,119360.0,119350.0,0.0686]
[1752685015816,1.41631307,119360.0,119350.0,0.49357341]
[1752685016219,1.41631307,119360.0,119350.0,0.66107251]
[1752685016420,1.41631307,119360.0,119350.0,0.67684251]
[1752685016723,1.41631307,119360.0,119350.0,0.08437]
[1752685016926,1.41631307,119360.0,119350.0,0.50934341]
[1752685017224,1.41631307,119360.0,119350.0,0.67684261]
[1752685017425,1.41495307,119360.0,119350.0,0.2518692]
[1752685017724,1.41495307,119360.0,119350.0,0.08437]
[1752685017914,1.41495307,119360.0,119350.0,0.50934341]
[1752685018116,1.41495307,119360.0,119350.0,0.2518692]
[1752685018313,1.41495307,119360.0,119350.0,0.50934341]
[1752685019422,1.41495307,119360.0,119350.0,0.67684261]
[1752685020519,1.41495307,119360.0,119350.0,0.08437]
[1752685020716,1.41495307,119360.0,119350.0,0.50934341]
[1752685020926,1.41495307,119360.0,119350.0,0.08437]
[1752685021127,1.41495307,119360.0,119350.0,0.67684261]
[1752685021621,1.41495307,119360.0,119350.0,0.08437]
[1752685021926,1.41495307,119360.0,119350.0,0.50934341]
[1752685022123,1.43120149,119360.0,119350.0,0.0686]
[1752685023329,1.43120149,119360.0,119350.0,0.0532]
[1752685023531,1.43120149,119360.0,119350.0,0.0507]
[1752685024425,1.8561749,119360.0,119350.0,0.0002]
[1752685027121,1.85617449,119360.0,119350.0,0.0002]
[1752685028529,1.43120108,119360.0,119350.0,0.0002]
[1752685028728,1.85617449,119360.0,119350.0,0.0002]
[1752685031631,1.43120108,119360.0,119350.0,0.0002]
[1752685032135,1.43120108,119360.0,119350.0,0.04501139]
[1752685032334,1.85617449,119360.0,119350.0,0.04501139]
[1752685033036,1.85617449,119360.0,119350.0,0.0002]
[1752685033232,1.85617449,119360.0,119350.0,0.04501139]
[1752685033935,1.43120108,119360.0,119350.0,0.04501139]
[1752685034137,1.85617449,119360.0,119350.0,0.04501139]
[1752685034832,1.85617449,119360.0,119350.0,0.0002]
[1752685035936,1.43120108,119360.0,119350.0,0.0002]
[1752685036133,1.85617449,119360.0,119350.0,0.0002]
[1752685036339,1.43120108,119360.0,119350.0,0.04501139]
[1752685036543,1.85617449,119360.0,119350.0,0.0002]
[1752685037335,0.66751261,119350.0,119340.0,0.04481139]
[1752685037529,0.1675273,119330.0,119320.0,0.11316576]
[1752685037728,0.8147673,119330.0,119320.0,0.11316576]
[1752685038038,0.8147673,119330.0,119320.0,0.05343]
[1752685038234,0.8147673,119330.0,119320.0,0.11316576]
[1752685038440,1.73974071,119330.0,119320.0,0.11316576]
[1752685038635,1.73974071,119330.0,119320.0,0.06273576]
[1752685039041,1.73974071,119330.0,119320.0,0.003]
[1752685040043,1.3147673,119330.0,119320.0,0.003]
[1752685040231,1.73974071,119330.0,119320.0,0.003]
[1752685040433,2.33232212,119330.0,119320.0,1e-07]
[1752685040633,2.58232212,119330.0,119320.0,1e-07]
[1752685040833,2.15734871,119330.0,119320.0,1e-07]
[1752685041134,2.22318944,119330.0,119320.0,1e-07]
[1752685041535,2.23961145,119330.0,119320.0,1e-07]
[1752685041937,0.1675553,119310.0,119300.0,0.00850941]
[1752685042138,0.1675694,119300.0,119290.0,0.21515891]
[1752685042435,0.6675694,119300.0,119290.0,0.15542315]
[1752685043136,0.6675694,119300.0,119290.0,0.32300655]
[1752685043340,1.3148894,119300.0,119290.0,0.74797996]
[1752685043742,1.3148894,119300.0,119290.0,0.32300655]
[1752685044444,0.6675694,119300.0,119290.0,0.32300655]
[1752685044645,0.6675694,119300.0,119290.0,0.74797996]
[1752685044841,0.8137294,119300.0,119290.0,0.74797996]
[1752685046145,0.8137294,119300.0,119290.0,0.75641041]
[1752685046341,1.92814776,119310.0,119300.0,0.2561193]
[1752685046542,2.57394776,119310.0,119300.0,0.6982574]
[1752685047038,2.57386776,119310.0,119300.0,0.6982574]
[1752685047244,2.57386776,119310.0,119300.0,0.27328399]
[1752685047444,2.57386776,119310.0,119300.0,0.6982574]
[1752685048146,1.92814776,119310.0,119300.0,0.6982574]
[1752685048345,2.57398776,119310.0,119300.0,0.6982574]
[1752685049947,2.57398776,119310.0,119300.0,0.27328399]
[1752685050149,2.57398776,119310.0,119300.0,0.10571469]
[1752685051350,2.99896117,119310.0,119300.0,0.07059469]
[1752685051550,2.99896117,119310.0,119300.0,0.10571469]
[1752685051753,2.57398776,119310.0,119300.0,0.5306881]
[1752685052050,2.57398776,119310.0,119300.0,0.10571469]
[1752685053752,2.57398776,119310.0,119300.0,0.5306881]
[1752685053952,2.57418776,119310.0,119300.0,0.5308881]
[1752685056155,2.57418776,119310.0,119300.0,0.6984574]
[1752685056656,2.57418776,119310.0,119300.0,0.5308881]
[1752685057060,2.57418776,119310.0,119300.0,0.10591469]
[1752685057357,2.57418776,119310.0,119300.0,0.56063983]
[1752685057755,2.57418776,119310.0,119300.0,0.13566642]
[1752685057949,2.99916117,119310.0,119300.0,0.13566642]
[1752685058148,2.57418776,119310.0,119300.0,0.13566642]
[1752685059365,2.57418776,119310.0,119300.0,0.18029732]
[1752685059566,2.57422776,119310.0,119300.0,0.18029732]
[1752685060256,2.57422776,119310.0,119300.0,0.13566642]
[1752685063268,2.57422776,119310.0,119300.0,0.11925642]
[1752685063470,2.57422776,119310.0,119300.0,0.16388732]
[1752685063770,2.57422776,119310.0,119300.0,0.11925642]
[1752685064064,2.99920117,119310.0,119300.0,0.02995173]
[1752685066574,2.99172117,119310.0,119300.0,0.07458263]
[1752685066969,2.35336117,119310.0,119300.0,0.12118263]
[1752685067170,2.99120117,119310.0,119300.0,0.12118263]
[1752685067871,2.56622776,119310.0,119300.0,0.12591263]
[1752685068469,1.92838776,119310.0,119300.0,0.0961609]
[1752685068773,2.56598776,119310.0,119300.0,0.12602941]
[1752685069369,2.56598776,119310.0,119300.0,0.0961609]
[1752685069571,2.99096117,119310.0,119300.0,0.0961609]
[1752685070072,2.99096117,119310.0,119300.0,0.0914309]
[1752685070877,2.99096117,119310.0,119300.0,0.0448309]
[1752685071173,1.92838776,119310.0,119300.0,0.0448309]
[1752685071374,2.56414776,119310.0,119300.0,0.0914309]
[1752685071570,1.92838776,119310.0,119300.0,0.72327371]
[1752685071875,2.56426776,119310.0,119300.0,0.67864281]
[1752685072078,2.56426776,119310.0,119300.0,0.72349082]
[1752685072875,1.92838776,119310.0,119300.0,0.72349082]
[1752685073073,2.56430776,119310.0,119300.0,0.72349082]
[1752685073275,2.56430776,119310.0,119300.0,0.29851741]
[1752685073475,2.56430776,119310.0,119300.0,0.55592142]
[1752685075976,2.56430776,119310.0,119300.0,0.72349072]
[1752685076173,1.92838776,119310.0,119300.0,0.72349072]
[1752685076374,2.56306776,119310.0,119300.0,0.13094801]
[1752685076680,2.56234776,119310.0,119300.0,0.13094801]
[1752685077177,2.56234776,119310.0,119300.0,0.55592142]
[1752685078176,2.56234776,119310.0,119300.0,0.13094801]
[1752685078377,2.56234776,119310.0,119300.0,0.55592142]
[1752685080172,2.98732117,119310.0,119300.0,0.04504801]
[1752685080578,2.98732117,119310.0,119300.0,0.09637801]
[1752685080767,2.98732117,119310.0,119300.0,0.11280801]
[1752685080973,2.56234776,119310.0,119300.0,0.12854801]
[1752685081570,2.56234776,119310.0,119300.0,0.13094801]
[1752685081978,2.56234776,119310.0,119300.0,0.14583576]
[1752685083182,2.56234776,119310.0,119300.0,0.57080917]
[1752685083382,2.56234776,119310.0,119300.0,0.73837837]
[1752685083778,1.92838776,119310.0,119300.0,0.2536692]
[1752685083982,2.56218776,119310.0,119300.0,0.73837837]
[1752685084281,2.06218776,119310.0,119300.0,0.67864261]
[1752685084682,1.42838776,119310.0,119300.0,0.67864261]
[1752685084881,1.97792646,119310.0,119300.0,0.73837837]
[1752685087486,1.97792646,119310.0,119300.0,0.67864261]
[1752685087680,1.97792646,119310.0,119300.0,0.75331231]
[1752685089990,1.97792646,119310.0,119300.0,0.67864261]
[1752685090288,1.97792646,119310.0,119300.0,0.75331231]
[1752685090886,0.7980833,119310.0,119300.0,0.67864261]
[1752685091286,0.7980833,119310.0,119300.0,0.2536692]
[1752685091589,0.7980833,119310.0,119300.0,0.67864261]
[1752685092088,0.7980833,119310.0,119300.0,0.75331231]
[1752685092487,0.00024,119310.0,119300.0,1.04791231]
[1752685092686,0.63048,119310.0,119300.0,1.04791231]
[1752685094092,0.6308,119310.0,119300.0,1.04791231]
[1752685094284,0.6308,119310.0,119300.0,1.2155523]
[1752685094681,0.1675435,119320.0,119310.0,0.3709613]
[1752685094988,0.7981035,119320.0,119310.0,0.88789726]
[1752685095190,0.7981035,119320.0,119310.0,0.81322756]
[1752685096079,0.7981035,119320.0,119310.0,0.88789726]
[1752685096391,0.7981035,119320.0,119310.0,0.9476218]
[1752685096689,0.7981035,119320.0,119310.0,0.8310643]
[1752685097087,0.7981035,119320.0,119310.0,0.40609089]
[1752685097287,0.7981035,119320.0,119310.0,0.8310643]
[1752685097487,0.7981035,119320.0,119310.0,1.1256643]
[1752685100889,0.7981035,119320.0,119310.0,1.1330643]
[1752685101384,0.7981035,119320.0,119310.0,1.07333976]
[1752685102696,0.7981035,119320.0,119310.0,1.14800946]
[1752685103495,0.7981035,119320.0,119310.0,1.07333976]
[1752685103696,0.7981035,119320.0,119310.0,0.64836635]
[1752685103894,0.7981035,119320.0,119310.0,1.07333976]
[1752685104697,0.2094597,119330.0,119320.0,0.2320113]
[1752685104999,0.8361797,119330.0,119320.0,0.73740095]
[1752685105597,0.8361797,119330.0,119320.0,0.31242754]
[1752685105799,0.8361797,119330.0,119320.0,0.73740095]
[1752685105994,0.8366997,119330.0,119320.0,0.31242754]
[1752685106195,0.8366997,119330.0,119320.0,0.73740095]
[1752685106396,0.8366997,119330.0,119320.0,0.67767471]
[1752685111701,4e-05,119330.0,119320.0,0.67767471]
[1752685111907,0.62528,119330.0,119320.0,1.16237436]
[1752685112106,0.7928072,119330.0,119320.0,0.73740095]
[1752685113302,4e-05,119330.0,119320.0,1.16237436]
[1752685113504,0.62544,119330.0,119320.0,1.45697436]
[1752685113708,0.62544,119330.0,119320.0,1.39724812]
[1752685114403,0.62544,119330.0,119320.0,1.47191782]
[1752685114605,0.62544,119330.0,119320.0,1.45696923]
[1752685114910,0.62544,119330.0,119320.0,0.60702241]
[1752685115210,0.62544,119330.0,119320.0,1.45696923]
[1752685118209,0.62544,119330.0,119320.0,1.39724812]
[1752685118610,4e-05,119330.0,119320.0,1.39724812]
[1752685118914,4e-05,119330.0,119320.0,1.47184565]
[1752685119109,4e-05,119330.0,119320.0,1.39724812]
[1752685119316,1.65876,119350.0,119340.0,0.2452732]
[1752685119613,0.7922196,119350.0,119340.0,0.75426918]
[1752685119808,0.62472,119350.0,119340.0,0.69460215]
[1752685120710,4e-05,119350.0,119340.0,0.75426918]
[1752685120905,0.62468,119350.0,119340.0,0.75426918]
[1752685122104,0.62468,119350.0,119340.0,0.73932611]
[1752685122304,4e-05,119350.0,119340.0,0.73932611]
[1752685122504,4e-05,119350.0,119340.0,0.69460215]
[1752685123308,4e-05,119350.0,119340.0,0.26962874]
[1752685123707,4e-05,119350.0,119340.0,0.69460215]
[1752685125816,4e-05,119350.0,119340.0,0.75426918]
[1752685126018,4e-05,119350.0,119340.0,0.69460215]
[1752685126315,4e-05,119350.0,119340.0,0.75415189]
[1752685129920,4e-05,119350.0,119340.0,0.75447972]
[1752685132123,4e-05,119350.0,119340.0,0.69492998]
[1752685133422,4e-05,119350.0,119340.0,0.67764661]
[1752685133627,4e-05,119350.0,119340.0,0.69456429]
[1752685135124,4e-05,119360.0,119350.0,0.2013293]
[1752685135320,4e-05,119360.0,119350.0,0.74015686]
[1752685136332,4e-05,119360.0,119350.0,0.31518345]
[1752685136630,4e-05,119360.0,119350.0,0.74015686]
[1752685137023,4e-05,119360.0,119350.0,0.31518345]
[1752685137224,4e-05,119360.0,119350.0,0.74015686]
[1752685138930,4e-05,119360.0,119350.0,0.80693772]
[1752685139130,0.00024,119360.0,119350.0,0.80713772]
[1752685140732,0.00024,119360.0,119350.0,2.30913772]
[1752685145024,0.00024,119360.0,119350.0,1.88416431]
[1752685145229,0.00024,119360.0,119350.0,2.30913772]
[1752685146331,0.00024,119360.0,119350.0,2.24965357]
[1752685147134,0.00024,119360.0,119350.0,2.30925855]
[1752685147538,0.00024,119360.0,119350.0,2.24965357]
[1752685148533,0.00024,119360.0,119350.0,3.29870698]
[1752685148837,1.9681768,119390.0,119380.0,0.2556572]
[1752685149036,2.5921768,119390.0,119380.0,0.71044853]
[1752685149231,2.5921768,119390.0,119380.0,0.26702512]
[1752685149437,2.5921768,119390.0,119380.0,0.25164512]
[1752685149735,2.5921768,119390.0,119380.0,0.26024615]
[1752685149936,2.5921768,119390.0,119380.0,0.29407615]
[1752685150337,2.5951768,119390.0,119380.0,0.33880303]
[1752685150537,2.5951768,119390.0,119380.0,0.30898511]
[1752685150733,2.5951768,119390.0,119380.0,0.73395852]
[1752685151232,2.2990914,119390.0,119380.0,0.30898511]
[1752685151436,2.4685346,119390.0,119380.0,0.73395852]
[1752685152039,2.4518032,119390.0,119380.0,0.76378605]
[1752685152339,2.4518032,119390.0,119380.0,0.73395852]
[1752685154237,2.4518032,119390.0,119380.0,0.27515511]
[1752685154238,2.87577661,119390.0,119380.0,0.27515511]
[1752685156135,0.6684432,119390.0,119380.0,0.73401852]
[1752685156533,0.6684432,119390.0,119380.0,0.30904511]
[1752685156733,1.2922032,119390.0,119380.0,0.30904511]
[1752685156935,1.2922032,119390.0,119380.0,0.73401852]
[1752685157135,1.2922032,119390.0,119380.0,0.30904511]
[1752685157639,1.2922032,119390.0,119380.0,0.27515511]
[1752685161739,0.6684432,119390.0,119380.0,0.27515511]
[1752685162044,1.2920032,119390.0,119380.0,0.29416036]
[1752685162844,0.6684432,119390.0,119380.0,0.29416036]
[1752685163043,1.2919632,119390.0,119380.0,0.71913377]
[1752685163245,0.6684432,119390.0,119380.0,0.71913377]
[1752685163447,1.2919632,119390.0,119380.0,0.71913377]
[1752685163747,0.501,119390.0,119380.0,0.71913377]
[1752685163945,1.2919232,119390.0,119380.0,0.71913377]
[1752685164147,1.2919232,119390.0,119380.0,0.29416036]
[1752685164347,1.2919232,119390.0,119380.0,0.71913377]
[1752685165144,1.2919232,119390.0,119380.0,0.71904363]
[1752685165341,0.7922232,119390.0,119380.0,0.71924363]
[1752685166050,0.1687832,119390.0,119380.0,0.71924363]
[1752685166244,0.7921832,119390.0,119380.0,0.71924363]
[1752685167348,0.1687832,119390.0,119380.0,0.71924363]
[1752685167647,0.7921032,119390.0,119380.0,0.71924363]
[1752685168051,0.1687832,119390.0,119380.0,0.71924363]
[1752685168349,0.7920632,119390.0,119380.0,0.71924363]
[1752685168546,0.00134,119390.0,119380.0,0.76397051]
[1752685168750,0.7920232,119390.0,119380.0,0.76397051]
[1752685169848,0.7920232,119390.0,119380.0,0.3389971]
[1752685170048,0.7920232,119390.0,119380.0,0.76397051]
[1752685170248,0.1687832,119390.0,119380.0,0.76397051]
[1752685170449,0.7919832,119390.0,119380.0,0.76397051]
[1752685172153,0.7919832,119390.0,119380.0,0.6894015]
[1752685174150,0.7918632,119390.0,119380.0,0.6894015]
[1752685174453,0.7918632,119390.0,119380.0,0.26442809]
[1752685174661,0.7918632,119390.0,119380.0,0.6894015]
[1752685174855,0.7918632,119390.0,119380.0,0.26442809]
[1752685175058,0.1687832,119390.0,119380.0,0.09697089]
[1752685175262,1.21684661,119390.0,119380.0,0.06308089]
[1752685175463,1.21684661,119390.0,119380.0,0.10788412]
[1752685177161,1.21688661,119390.0,119380.0,0.10788412]
[1752685177964,1.21688661,119390.0,119380.0,0.06308089]
[1752685180059,1.21688661,119390.0,119380.0,0.23053809]
[1752685180258,0.7919132,119390.0,119380.0,0.23053809]
[1752685180458,1.21688661,119390.0,119380.0,0.23053809]
[1752685180661,1.21660661,119390.0,119380.0,0.24564809]
[1752685180861,1.21660661,119390.0,119380.0,0.26215809]
[1752685181667,0.7916332,119390.0,119380.0,0.26215809]
[1752685182165,0.7916332,119390.0,119380.0,0.09470089]
[1752685182661,1.21656661,119390.0,119380.0,0.0002]
[1752685182868,0.1674713,119370.0,119360.0,0.12584595]
[1752685183166,1.23216359,119370.0,119360.0,0.10615304]
[1752685183360,1.73216359,119370.0,119360.0,0.10615304]
[1752685183565,1.30719018,119370.0,119360.0,0.27858834]
[1752685183760,1.73216359,119370.0,119360.0,0.27858834]
[1752685183959,1.10956359,119370.0,119360.0,0.27858834]
[1752685184158,0.68459018,119370.0,119360.0,0.31115834]
[1752685184361,0.68459018,119370.0,119360.0,0.7549607]
[1752685184563,1.30715018,119370.0,119360.0,0.7549607]
[1752685184766,1.30715018,119370.0,119360.0,0.32998729]
[1752685185471,1.30715018,119370.0,119360.0,0.33198729]
[1752685186874,0.68459018,119370.0,119360.0,0.33198729]
[1752685187062,1.30711018,119370.0,119360.0,0.33198729]
[1752685187667,1.73208359,119370.0,119360.0,0.33198729]
[1752685190366,1.73208359,119370.0,119360.0,0.31315834]
[1752685190367,1.2899913,119370.0,119360.0,0.31315834]
[1752685190770,1.2899913,119370.0,119360.0,0.2533753]
[1752685191071,1.2898313,119370.0,119360.0,0.2533753]
[1752685191574,0.6675113,119370.0,119360.0,0.2533753]
[1752685191771,1.2898713,119370.0,119360.0,0.2533753]
[1752685192474,0.6675113,119370.0,119360.0,0.67834871]
[1752685192676,1.2898313,119370.0,119360.0,0.67834871]
[1752685193071,0.6675113,119370.0,119360.0,0.67834871]
[1752685193271,1.2898313,119370.0,119360.0,0.67834871]
[1752685193471,1.2897913,119370.0,119360.0,0.2533753]
[1752685193680,1.2897913,119370.0,119360.0,0.67834871]
[1752685193971,0.6675113,119370.0,119360.0,0.67834871]
[1752685194170,1.2897913,119370.0,119360.0,0.67834871]
[1752685195878,1.2897913,119370.0,119360.0,0.73813175]
[1752685197179,1.2897913,119370.0,119360.0,0.31315834]
[1752685197475,1.2897913,119370.0,119360.0,0.73813175]
[1752685197880,1.2896713,119370.0,119360.0,0.73813175]
[1752685198875,1.2895913,119370.0,119360.0,0.73813175]
[1752685200173,1.2895913,119370.0,119360.0,0.31315834]
[1752685200374,1.71476471,119370.0,119360.0,0.31335834]
[1752685200582,1.2897913,119370.0,119360.0,0.2535753]
[1752685200974,1.2897913,119370.0,119360.0,0.67854871]
[1752685201177,0.6677113,119370.0,119360.0,0.67854871]
[1752685201383,1.2897113,119370.0,119360.0,0.67854871]
[1752685201682,0.7897113,119370.0,119360.0,0.67854871]
[1752685202583,0.1677113,119370.0,119360.0,0.67854871]
[1752685202882,0.6222,119370.0,119360.0,0.73833175]
[1752685203077,0.00024,119370.0,119360.0,1.16330516]
[1752685203277,0.2512189,119390.0,119380.0,0.25193115]
[1752685203478,0.2512189,119390.0,119380.0,0.72170726]
[1752685203679,4e-05,119390.0,119380.0,0.72170726]
[1752685203878,0.789363,119390.0,119380.0,0.29673385]
[1752685204080,0.789363,119390.0,119380.0,0.72170726]
[1752685204379,0.62492,119390.0,119380.0,0.67690456]
[1752685204578,0.792363,119390.0,119380.0,0.67690456]
[1752685204780,0.792363,119390.0,119380.0,0.72170561]
[1752685204989,1.21733641,119390.0,119380.0,0.09619105]
[1752685205183,1.71733641,119390.0,119380.0,0.09619105]
[1752685205687,1.88486441,119390.0,119380.0,0.04480105]
[1752685205880,0.2512116,119370.0,119360.0,0.05974757]
[1752685206183,0.667485,119360.0,119350.0,0.12648529]
[1752685206380,1.09245841,119360.0,119350.0,0.12648529]
[1752685206581,0.667485,119360.0,119350.0,0.20107124]
[1752685206779,1.09245841,119360.0,119350.0,0.12597595]
[1752685207082,0.667485,119360.0,119350.0,0.57005752]
[1752685207297,0.667485,119360.0,119350.0,0.31258321]
[1752685207584,0.667485,119360.0,119350.0,0.73755662]
[1752685208084,0.667485,119360.0,119350.0,0.74602888]
[1752685208289,0.667485,119360.0,119350.0,0.15355637]
[1752685208490,0.667485,119360.0,119350.0,0.38858721]
[1752685208784,0.667485,119360.0,119350.0,0.81356062]
[1752685209585,0.667485,119360.0,119350.0,0.75378651]
[1752685210488,0.667485,119360.0,119350.0,0.161314]
[1752685210681,0.667485,119360.0,119350.0,0.05986226]
[1752685210889,1.09245841,119360.0,119350.0,0.11963637]
[1752685211281,0.667485,119360.0,119350.0,0.11963637]
[1752685211481,1.09245841,119360.0,119350.0,0.11963637]
[1752685212086,1.09245841,119360.0,119350.0,0.05986226]
[1752685212283,1.09245841,119360.0,119350.0,0.28713547]
[1752685212588,0.667485,119360.0,119350.0,0.28713547]
[1752685213090,0.667485,119360.0,119350.0,0.22736136]
[1752685213288,0.667485,119360.0,119350.0,0.68625477]
[1752685213488,0.667485,119360.0,119350.0,0.74602888]
[1752685213682,0.667485,119360.0,119350.0,0.68625477]
[1752685214280,0.667485,119360.0,119350.0,0.32106076]
[1752685214681,0.667485,119360.0,119350.0,0.74603417]
[1752685215592,0.667485,119360.0,119350.0,0.68625477]
[1752685216191,0.667485,119360.0,119350.0,0.26128136]
[1752685216392,0.667485,119360.0,119350.0,0.68625477]
[1752685216892,0.667485,119360.0,119350.0,0.26128136]
[1752685217085,0.667485,119360.0,119350.0,0.68625477]
[1752685217691,0.667485,119360.0,119350.0,0.26128136]
[1752685217892,0.667485,119360.0,119350.0,0.68625477]
[1752685218194,0.667485,119360.0,119350.0,0.75218341]
[1752685219488,0.667485,119360.0,119350.0,0.29329]
[1752685219993,0.667485,119360.0,119350.0,0.32867]
[1752685220188,0.667685,119360.0,119350.0,0.32887]
[1752685221598,0.667685,119360.0,119350.0,0.75384341]
[1752685222095,0.667685,119360.0,119350.0,0.81362281]
[1752685222498,0.68476285,119360.0,119350.0,0.81362281]
[1752685223998,1.30632285,119360.0,119350.0,0.81362281]
[1752685224405,0.68476285,119360.0,119350.0,0.81362281]
[1752685224594,1.30632285,119360.0,119350.0,0.81362281]
[1752685224799,0.68476285,119360.0,119350.0,0.81362281]
[1752685224996,0.51727785,119360.0,119350.0,0.75384341]
[1752685225201,0.62172,119360.0,119350.0,0.75384341]
[1752685225805,0.62172,119360.0,119350.0,0.82842936]
[1752685226505,0.0419021,119390.0,119380.0,0.172437]
[1752685226506,0.7093581,119390.0,119380.0,0.172437]
[1752685226707,1.3727412,119390.0,119380.0,0.70948314]
[1752685227302,1.3727412,119390.0,119380.0,0.75426224]
[1752685228606,1.3757412,119390.0,119380.0,0.75426224]
[1752685229403,1.3747412,119390.0,119380.0,0.75426224]
[1752685229600,1.3747412,119390.0,119380.0,0.32928883]
[1752685229804,1.3747412,119390.0,119380.0,0.75426224]
[1752685230802,1.3747412,119390.0,119380.0,0.73933588]
[1752685231007,1.3328781,119390.0,119380.0,0.73933588]
[1752685233508,1.3328781,119390.0,119380.0,0.67963041]
[1752685233902,1.77461161,119390.0,119380.0,0.11152547]
[1752685234103,0.167457,119380.0,119370.0,0.13043648]
[1752685234305,1.21551041,119380.0,119370.0,0.13043648]
[1752685234907,0.790537,119380.0,119370.0,0.72288089]
[1752685235107,0.790537,119380.0,119370.0,0.74166089]
[1752685235610,0.790537,119380.0,119370.0,0.31668748]
[1752685236312,0.790537,119380.0,119370.0,0.14921648]
[1752685236912,0.790537,119380.0,119370.0,0.1153392]
[1752685237105,1.21551041,119380.0,119370.0,0.30149182]
[1752685237506,0.790537,119380.0,119370.0,0.74306523]
[1752685238008,1.23273064,119380.0,119370.0,0.11524082]
[1752685238414,0.80775723,119380.0,119370.0,0.28271182]
[1752685239109,0.80779723,119380.0,119370.0,0.28271182]
[1752685239316,0.790577,119380.0,119370.0,0.11524082]
[1752685239911,0.792577,119380.0,119370.0,0.11524082]